bitfinex/quotes_ETHUSD_20260219
["timestamp","ask_amount","ask_price","bid_price","bid_amount"]
[1771498933259,0.852,1961.2,1961.1,0.001]
[1771498935068,0.8531,1961.3,1961.1,0.001]
[1771498937360,0.0011,1961.6,1961.1,0.59173904]
[1771498938983,0.0011,1961.6,1961.3,0.59073904]
[1771498939371,0.0011,1961.6,1961.2,1.27472975]
[1771498939786,0.0011,1961.6,1961.2,1.86546879]
[1771498940872,0.0011,1961.6,1961.3,0.59073904]
[1771498941178,0.0011,1961.6,1961.4,1.27459977]
[1771498941589,0.852,1961.8,1961.4,1.27459977]
[1771498941750,0.58712974,1961.9,1961.5,0.59073904]
[1771498941751,0.0011,1961.9,1961.5,0.59073904]
[1771498942955,0.0011,1961.9,1961.7,0.59073904]
[1771498945083,0.0011,1962.2,1961.8,1.27433989]
[1771498945578,0.0011,1962.2,1961.9,0.59073904]
[1771498945780,0.0011,1962.1,1961.9,0.59073904]
[1771498947088,0.0011,1962.1,1962.0,1.27420998]
[1771498948886,0.0011,1962.3,1962.0,1.86494902]
[1771498949698,0.0011,1962.3,1962.0,1.27420998]
[1771498952882,0.0011,1962.3,1961.9,5.09700468]
[1771498953183,0.0011,1962.3,1962.0,0.59073904]
[1771498954196,0.0011,1962.3,1961.9,5.09700468]
[1771498955603,0.0011,1962.3,1962.0,0.59073904]
[1771498956202,0.0011,1962.5,1962.1,0.59073904]
[1771498956507,0.0011,1962.7,1962.1,0.53758748]
[1771498956709,1.84698405,1962.7,1961.9,6.75859216]
[1771498957002,0.57212077,1962.6,1961.9,6.75859216]
[1771498957210,0.0011,1962.2,1961.9,6.75859216]
[1771498958699,0.0011,1962.2,1961.9,6.22100468]
[1771498958874,0.0011,1962.2,1962.0,0.53758748]
[1771498959700,0.0011,1962.2,1962.1,1.27414504]
[1771498960203,0.0011,1962.2,1961.9,1.124]
[1771498960406,0.0011,1962.2,1961.9,2.39822337]
[1771498960598,0.0011,1962.2,1961.9,1.27422337]
[1771498962485,0.0011,1962.2,1961.7,5.09747356]
[1771498964112,0.0011,1962.2,1961.7,1.27440485]
[1771498964113,0.57322077,1962.2,1961.7,1.27440485]
[1771498964907,0.0011,1962.2,1961.8,0.53758748]
[1771498965716,0.0011,1962.2,1961.8,6.15683015]
[1771498966006,0.0011,1962.2,1961.9,1.27427493]
[1771498968910,0.0011,1962.2,1961.8,5.63477186]
[1771498969288,0.0011,1962.2,1962.0,0.001]
[1771498971495,0.57322077,1962.2,1962.0,0.001]
[1771498973608,0.0011,1962.2,1962.0,0.001]
[1771498975420,0.0011,1962.3,1962.0,1.81279746]
[1771498975719,0.0011,1962.3,1962.1,0.53758748]
[1771498976106,0.0011,1962.3,1962.0,1.27520998]
[1771498978301,0.0011,1962.3,1962.0,1.81279746]
[1771498980646,0.0011,1962.3,1962.0,1.27520998]
[1771498982110,0.0011,1962.3,1962.1,0.001]
[1771498983235,0.0011,1962.5,1962.1,0.001]
[1771498983820,0.0011,1962.5,1962.1,0.51887686]
[1771498985335,0.0011,1962.5,1962.2,1.27408011]
[1771498988340,0.51204977,1962.5,1962.1,5.09732045]
[1771498988837,0.0011,1962.5,1962.1,5.09732045]
[1771498991553,0.0011,1962.5,1962.1,5.61101157]
[1771498992144,0.0011,1962.5,1962.1,5.09732045]
[1771498993242,0.0011,1962.7,1962.3,0.51369112]
[1771498994644,0.0011,1962.7,1962.5,0.51369112]
[1771498995553,0.0011,1962.8,1962.6,1.27382044]
[1771498997743,0.0011,1962.8,1962.5,5.09528176]
[1771499001123,0.0011,1963.0,1962.6,5.61924267]
[1771499001636,0.0011,1963.0,1962.6,6.13293379]
[1771499002650,0.0011,1963.0,1962.7,1.27375554]
[1771499002829,0.51094977,1963.6,1962.9,0.51369112]
[1771499003145,0.51094977,1963.6,1962.7,1.27375554]
[1771499003346,0.51094977,1963.4,1962.7,1.27375554]
[1771499004943,0.51094977,1963.2,1962.6,5.09502216]
[1771499006954,0.51094977,1963.2,1962.6,5.09602216]
[1771499010373,0.51094977,1963.2,1962.6,10.71526483]
[1771499010655,0.51094977,1963.2,1962.6,5.09602216]
[1771499015742,0.51094977,1963.1,1962.6,1.27482044]
[1771499015948,0.51094977,1963.1,1962.6,0.001]
[1771499016472,0.51094977,1962.9,1962.6,0.001]
[1771499016643,0.54973237,1962.8,1962.6,0.001]
[1771499017672,0.54973237,1962.7,1962.3,0.001]
[1771499017968,0.54973237,1962.5,1962.1,0.001]
[1771499019752,1.82362699,1962.5,1962.1,0.001]
[1771499019948,0.54973237,1962.5,1962.1,0.001]
[1771499020269,0.834,1962.8,1962.2,0.50785287]
[1771499020471,1.38373237,1962.8,1962.3,0.001]
[1771499020661,0.54973237,1962.7,1962.3,0.001]
[1771499021956,0.54973237,1962.5,1962.3,0.001]
[1771499023044,1.27379835,1962.7,1962.3,0.001]
[1771499023371,0.835,1962.6,1962.3,0.001]
[1771499023950,0.54973237,1962.7,1962.3,0.001]
[1771499024170,0.835,1962.7,1962.3,0.001]
[1771499025272,1.82339326,1962.9,1962.3,0.001]
[1771499025578,0.835,1962.8,1962.3,0.001]
[1771499026080,1.38473237,1962.8,1962.3,0.001]
[1771499026773,1.82343072,1962.8,1962.3,0.001]
[1771499026977,2.65843072,1962.8,1962.3,0.001]
[1771499027779,0.54973237,1962.7,1962.3,0.001]
[1771499028780,0.835,1962.8,1962.3,0.001]
[1771499028948,0.54973237,1962.9,1962.3,0.50885287]
[1771499029148,0.835,1962.9,1962.3,0.50885287]
[1771499029973,1.38473237,1962.9,1962.3,0.50885287]
[1771499031091,5.09521078,1963.1,1962.4,0.50785287]
[1771499031092,0.0011,1963.1,1962.4,0.50785287]
[1771499031279,1.27461323,1963.1,1962.5,0.50785287]
[1771499031577,1.8243456,1963.1,1962.5,0.50785287]
[1771499031949,0.55083237,1963.1,1962.5,0.50785287]
[1771499033483,0.0011,1963.1,1962.7,0.50785287]
[1771499035213,0.0011,1963.1,1962.8,0.50785287]
[1771499035775,0.0011,1963.1,1962.8,1.78149561]
[1771499035960,0.0011,1963.1,1962.8,1.27364274]
[1771499036391,0.0011,1963.1,1962.8,1.78149561]
[1771499038393,0.0011,1963.1,1962.8,1.27367381]
[1771499040398,0.0011,1963.1,1962.6,5.09514802]
[1771499041694,0.0011,1963.1,1962.6,5.62152682]
[1771499041892,0.0011,1963.1,1962.7,0.5263788]
[1771499042492,0.0011,1963.1,1962.8,1.27369064]
[1771499042995,0.0011,1963.1,1962.7,1.80008443]
[1771499043491,0.0011,1963.1,1962.7,1.27370563]
[1771499043692,0.50030182,1963.0,1962.4,1.27395026]
[1771499043875,0.49920182,1962.9,1962.3,1.80134219]
[1771499044396,0.49920182,1962.7,1962.3,0.001]
[1771499044689,0.49920182,1962.5,1962.3,0.001]
[1771499046688,6.89235979,1962.8,1962.3,0.001]
[1771499046689,1.78054933,1962.8,1962.3,0.49827924]
[1771499046892,1.78055034,1962.8,1962.3,0.49827924]
[1771499047072,0.832,1962.9,1962.3,0.49827924]
[1771499047073,2.10667817,1962.9,1962.3,0.49827924]
[1771499047278,0.50685869,1962.8,1962.3,0.001]
[1771499047478,0.50685869,1962.7,1962.3,0.001]
[1771499048603,1.78067913,1962.6,1962.3,0.001]
[1771499050175,1.27382044,1962.6,1962.3,0.001]
[1771499051577,1.78067913,1962.6,1962.3,0.001]
[1771499054212,1.27382044,1962.6,1962.3,0.001]
[1771499054416,0.50685869,1962.5,1962.3,0.001]
[1771499055404,0.50795869,1962.5,1962.3,0.001]
[1771499057785,0.0011,1962.5,1962.3,0.001]
[1771499058484,1.27498583,1962.5,1962.3,0.001]
[1771499058884,0.0011,1962.5,1962.3,0.001]
[1771499060992,0.0011,1962.5,1962.3,0.49827924]
[1771499062014,0.0011,1962.8,1962.4,0.49727924]
[1771499062924,0.0011,1962.8,1962.3,0.001]
[1771499063129,0.50795869,1962.8,1962.3,0.001]
[1771499064891,0.0011,1962.8,1962.3,0.49827924]
[1771499067027,0.0011,1962.8,1962.4,1.27395026]
[1771499067323,0.50795869,1962.8,1962.3,0.001]
[1771499067840,0.50795869,1962.8,1962.3,1.27501347]
[1771499068508,0.50795869,1962.8,1962.3,0.001]
[1771499068708,0.50795869,1962.8,1962.4,0.001]
[1771499068925,0.0011,1962.7,1962.4,0.001]
[1771499073611,1.07589537,1962.8,1962.4,0.001]
[1771499074812,1.27362601,1962.9,1962.4,0.49827924]
[1771499076028,1.27466087,1963.0,1962.5,0.49727924]
[1771499076227,2.11066087,1963.0,1962.5,0.49727924]
[1771499077719,0.8371,1963.0,1962.5,0.49727924]
[1771499078521,0.8371,1963.0,1962.5,1.77113013]
[1771499079037,0.0011,1963.0,1962.5,1.77113013]
[1771499079400,0.0011,1963.0,1962.6,0.50206179]
[1771499080430,0.0011,1962.9,1962.8,0.50206179]
[1771499081530,0.0011,1963.1,1962.8,0.50206179]
[1771499082520,0.0011,1963.1,1962.9,1.27362575]
[1771499082723,0.0011,1963.1,1962.9,1.77568754]
[1771499083819,0.0011,1963.3,1963.0,0.50206179]
[1771499086973,0.0011,1963.3,1963.0,1.77558082]
[1771499088173,0.49778205,1963.8,1963.1,0.50206179]
[1771499088348,1.33178205,1964.0,1963.1,0.50206179]
[1771499088539,0.49778205,1963.9,1963.1,0.50206179]
[1771499088943,0.49778205,1963.9,1963.2,1.27343113]
[1771499088944,1.77078613,1963.9,1963.2,1.27343113]
[1771499089256,0.49778205,1963.8,1963.0,0.50206179]
[1771499089444,0.49778205,1963.8,1962.8,1.77575243]
[1771499089644,0.49778205,1963.8,1962.6,1.77584338]
[1771499089969,0.49778205,1963.6,1962.6,1.77584338]
[1771499090173,0.49778205,1963.4,1962.6,0.50206179]
[1771499090466,0.49778205,1963.4,1962.5,2.19284416]
[1771499090638,1.71,1963.5,1962.5,1.27487886]
[1771499090639,0.49778205,1963.2,1962.5,1.27487886]
[1771499091374,1.77124075,1963.2,1962.5,1.77694065]
[1771499091665,1.77124075,1963.2,1962.5,0.50306179]
[1771499092844,0.49778205,1963.1,1962.5,0.50306179]
[1771499094368,1.77132515,1963.1,1962.5,1.77691356]
[1771499095678,0.49778205,1963.1,1962.5,1.77691356]
[1771499095864,1.77129553,1963.1,1962.5,1.77691356]
[1771499096049,1.77129553,1963.1,1962.5,0.50306179]
[1771499096367,1.77129553,1963.1,1962.5,1.77694187]
[1771499098877,1.77129433,1963.1,1962.5,1.77694187]
[1771499100177,1.77129433,1963.1,1962.5,0.50306179]
[1771499100379,6.11341706,1962.7,1962.4,0.001]
[1771499100674,1.27382044,1962.6,1962.4,0.001]
[1771499100877,1.27374748,1962.8,1962.4,0.001]
[1771499101044,1.77146034,1962.9,1962.4,0.001]
[1771499101447,0.833,1962.8,1962.4,0.001]
[1771499101673,0.833,1962.8,1962.4,0.48593757]
[1771499103977,2.10667829,1962.9,1962.4,0.48593757]
[1771499104176,1.27367829,1962.9,1962.4,0.48593757]
[1771499104480,2.10767829,1962.9,1962.5,0.001]
[1771499105162,1.73345892,1963.2,1962.5,0.48593757]
[1771499105349,1.29398355,1963.1,1962.5,0.48593757]
[1771499105680,0.45998355,1962.7,1962.4,0.001]
[1771499105847,1.73377005,1962.7,1962.4,0.001]
[1771499106049,0.45998355,1962.6,1962.4,0.001]
[1771499107398,2.1077865,1962.7,1962.4,0.001]
[1771499107546,1.2737865,1962.7,1962.4,0.001]
[1771499107742,0.835,1962.6,1962.4,0.001]
[1771499108279,2.10882372,1962.6,1962.4,0.001]
[1771499109362,2.11082372,1962.6,1962.4,0.001]
[1771499111583,0.837,1962.6,1962.4,0.001]
[1771499111880,2.56600221,1962.6,1962.4,0.001]
[1771499113358,0.837,1962.6,1962.4,0.001]
[1771499114277,2.11082221,1962.6,1962.4,0.001]
[1771499114496,0.837,1962.6,1962.4,0.001]
[1771499115050,1.72880097,1962.9,1962.4,0.001]
[1771499115289,0.841,1962.8,1962.4,0.001]
[1771499115595,1.29617522,1962.8,1962.4,0.001]
[1771499115885,1.29617522,1962.8,1962.5,0.001]
[1771499117804,2.56990302,1962.8,1962.5,0.001]
[1771499119095,2.1147278,1962.8,1962.5,0.001]
[1771499121187,0.841,1962.8,1962.5,0.001]
[1771499121565,1.27367828,1962.9,1962.5,0.001]
[1771499121771,0.846,1962.8,1962.5,0.001]
[1771499122499,0.846,1962.7,1962.5,0.001]
[1771499125201,1.27367828,1962.9,1962.5,0.45530747]
[1771499125507,0.848,1962.8,1962.5,0.001]
[1771499126502,6.91881023,1962.8,1962.5,0.001]
[1771499126803,0.45517522,1962.7,1962.5,0.001]
[1771499127975,1.27375554,1962.7,1962.6,0.001]
[1771499128377,1.27485554,1962.7,1962.6,0.001]
[1771499131692,1.27485554,1962.7,1962.4,0.001]
[1771499131890,6.07081023,1962.6,1962.2,0.001]
[1771499132083,6.07081023,1962.3,1961.8,0.001]
[1771499132278,1.27395026,1962.4,1961.9,0.45530747]
[1771499132493,0.854,1962.2,1961.9,0.45530747]
[1771499132711,1.27382044,1962.6,1961.9,0.45530747]
[1771499133011,0.854,1962.5,1961.9,0.45530747]
[1771499133314,6.92481023,1962.5,1961.9,0.45530747]
[1771499133496,0.45517522,1962.4,1961.9,0.001]
[1771499134911,1.27401518,1962.3,1961.9,0.001]
[1771499135087,0.854,1962.2,1961.9,0.001]
[1771499135807,0.854,1962.2,1961.9,0.45530747]
[1771499136886,1.27401518,1962.3,1961.9,0.45530747]
[1771499137092,0.855,1962.2,1961.9,0.45530747]
[1771499140413,1.27401518,1962.3,1961.9,0.45530747]
[1771499140621,0.856,1962.2,1961.9,0.45530747]
[1771499141315,0.856,1962.2,1962.0,0.001]
[1771499141619,0.0011,1962.1,1962.0,0.001]
[1771499151821,0.0011,1962.1,1961.8,0.001]
[1771499153825,1.27524504,1962.1,1962.0,0.001]
[1771499154024,1.75383781,1962.1,1961.8,0.001]
[1771499154727,0.861,1962.0,1961.8,0.001]
[1771499155103,1.33959277,1962.0,1961.8,0.001]
[1771499155295,0.47859277,1961.9,1961.3,0.4914662]
[1771499155940,1.27433989,1961.8,1961.3,1.76612747]
[1771499156102,2.13526333,1962.0,1961.4,0.4904662]
[1771499157216,2.6138561,1962.0,1961.4,0.4904662]
[1771499160520,0.47859277,1961.9,1961.3,0.001]
[1771499160727,6.09813958,1961.8,1961.3,0.001]
[1771499161216,0.47859277,1961.8,1961.3,0.001]
[1771499161808,0.45004939,1961.9,1961.3,0.47123158]
[1771499162915,1.27433989,1961.8,1961.3,0.47123158]
[1771499163124,0.863,1961.7,1961.4,0.47023158]
[1771499163319,0.863,1962.0,1961.4,0.47023158]
[1771499163940,0.8641,1962.1,1961.6,0.47023158]
[1771499164447,0.0011,1962.1,1961.6,0.47023158]
[1771499164955,0.0011,1962.1,1961.8,0.47023158]
[1771499166528,0.0011,1962.0,1961.8,0.47023158]
[1771499166738,0.0011,1962.0,1961.6,1.74971761]
[1771499167253,0.0011,1962.0,1961.7,0.47529984]
[1771499168217,0.0011,1962.0,1961.8,0.47529984]
[1771499168546,0.0011,1962.2,1962.0,0.47529984]
[1771499169550,0.0011,1962.4,1962.2,0.47529984]
[1771499171214,0.0011,1962.4,1962.0,1.74949316]
[1771499171436,5.62064681,1962.4,1961.9,0.47529984]
[1771499174145,6.89463084,1962.4,1961.9,0.47529984]
[1771499174348,6.89463084,1962.4,1961.9,1.74957097]
[1771499174580,0.0011,1962.4,1962.0,0.47529984]
[1771499176141,0.0011,1962.4,1962.2,0.47529984]
[1771499178960,0.0011,1962.3,1962.2,0.47529984]
[1771499179524,0.0011,1962.3,1962.2,1.74937995]
[1771499180750,0.0011,1962.6,1962.3,0.47529984]
[1771499181116,0.0011,1962.8,1962.4,0.47529984]
[1771499182961,0.0011,1962.8,1962.5,1.74918519]
[1771499183815,0.0011,1962.8,1962.5,0.47529984]
[1771499184259,0.0011,1962.8,1962.4,1.27390155]
[1771499184456,0.0011,1962.8,1962.4,1.74920139]
[1771499184661,0.0011,1962.8,1962.3,1.27396453]
[1771499184824,0.0011,1962.8,1962.3,1.74926437]
[1771499186458,0.0011,1962.8,1962.4,0.47529984]
[1771499187027,0.0011,1962.8,1962.5,1.74918519]
[1771499188267,0.0011,1962.8,1962.6,0.47529984]
[1771499189069,0.0011,1962.8,1962.3,1.75911419]
[1771499189265,0.0011,1962.8,1962.4,0.48509901]
[1771499191367,0.0011,1962.8,1962.5,1.74627016]
[1771499191568,0.0011,1962.7,1962.5,1.74627016]
[1771499191743,0.0011,1963.0,1962.6,0.47238481]
[1771499194369,0.0011,1963.0,1962.7,1.74614035]
[1771499196280,0.0011,1963.0,1962.8,0.47238481]
[1771499196586,0.0011,1963.0,1962.9,1.27362575]
[1771499197231,0.0011,1963.3,1962.9,1.75501238]
[1771499197435,0.0011,1963.3,1963.0,0.48138663]
[1771499198436,0.0011,1963.3,1963.0,1.75490713]
[1771499202791,0.0011,1963.3,1962.8,1.77135955]
[1771499204094,0.0011,1963.3,1962.8,1.77235955]
[1771499204293,0.0011,1963.2,1962.8,1.77235955]
[1771499205696,0.0011,1963.2,1962.9,0.49771997]
[1771499206987,0.0011,1963.2,1962.9,1.77128833]
[1771499207194,0.0011,1963.2,1963.0,0.49771997]
[1771499208698,0.0011,1963.2,1962.9,1.27356836]
[1771499209070,0.0011,1963.2,1962.9,1.77128833]
[1771499209483,0.0011,1963.2,1963.0,0.49771997]
[1771499209808,0.0011,1963.4,1963.0,0.49771997]
[1771499211596,0.0011,1963.4,1963.1,1.273496]
[1771499212773,0.46077635,1963.4,1962.8,1.77236499]
[1771499213886,1.73409409,1963.4,1962.8,1.77236499]
[1771499214396,0.46077635,1963.4,1962.8,1.77236499]
[1771499214599,0.0011,1963.4,1962.9,0.49771997]
[1771499215709,0.0011,1963.4,1963.0,1.27356087]
[1771499216006,0.0011,1963.4,1963.1,0.49771997]
[1771499218017,0.0011,1963.3,1963.1,1.7711867]
[1771499220711,0.0011,1963.3,1963.1,0.49771997]
[1771499220888,0.0011,1963.3,1962.9,1.27457358]
[1771499223817,0.44838055,1963.4,1962.9,1.27457358]
[1771499227795,0.0011,1963.5,1962.9,1.75943418]
[1771499229824,0.0011,1963.5,1963.0,0.001]
[1771499230024,0.0011,1963.3,1963.0,0.001]
[1771499233030,0.0011,1963.3,1963.0,0.4858606]
[1771499235118,0.0011,1963.3,1963.1,1.273496]
[1771499236533,0.0011,1963.5,1963.2,0.4848606]
[1771499237115,0.0011,1963.5,1963.3,1.27336627]
[1771499242332,0.0011,1963.4,1963.3,1.27336627]
[1771499242735,0.0011,1963.7,1963.4,0.4848606]
[1771499243824,0.48837622,1963.6,1963.0,1.27454998]
[1771499244426,1.76158273,1963.6,1963.0,1.75941058]
[1771499245117,0.48837622,1963.5,1963.0,1.27454998]
[1771499247544,7.37546763,1963.7,1963.0,1.75941058]
[1771499247837,7.37546763,1963.7,1963.1,0.4848606]
[1771499247838,0.0011,1963.7,1963.1,0.4848606]
[1771499248139,0.0011,1963.7,1963.2,0.4848606]
[1771499249547,0.0011,1963.7,1963.3,1.27336627]
[1771499249728,0.0011,1963.7,1963.3,1.75822687]
[1771499250721,0.0011,1963.7,1963.4,0.4848606]
[1771499251743,0.0011,1963.7,1963.5,1.27323656]
[1771499251919,0.0011,1963.7,1963.5,1.75809716]
[1771499252321,1.76122993,1964.1,1963.5,1.75809716]
[1771499252546,0.48837622,1964.1,1963.5,1.75809716]
[1771499253412,0.48837622,1964.1,1963.4,5.09308632]
[1771499253413,0.48837622,1964.0,1963.4,1.75811828]
[1771499253742,0.48837622,1964.0,1963.4,1.27325768]
[1771499253926,1.76135345,1963.9,1963.4,1.27325768]
[1771499254126,1.76135345,1963.9,1963.4,1.27425768]
[1771499254537,0.0011,1963.6,1963.4,1.27425768]
[1771499255222,0.0011,1963.6,1963.4,0.001]
[1771499265461,1.74337641,1964.0,1963.4,0.46015541]
[1771499265655,5.09150629,1964.1,1963.4,0.46015541]
[1771499265656,2.58834739,1964.1,1963.4,0.46015541]
[1771499266218,1.74334739,1964.1,1963.4,0.46015541]
[1771499266623,6.08327048,1964.0,1963.4,0.001]
[1771499266825,0.47043722,1963.8,1963.4,0.001]
[1771499267263,1.7434005,1964.0,1963.4,0.001]
[1771499267834,0.47043722,1963.9,1963.4,0.001]
[1771499268033,0.47043722,1963.9,1963.5,0.001]
[1771499268255,0.0011,1963.7,1963.5,0.001]
[1771499280285,0.47153722,1963.7,1963.5,0.001]
[1771499280465,0.47153722,1963.7,1963.2,0.001]
[1771499280466,6.08122592,1963.5,1963.2,0.001]
[1771499282581,7.35450071,1963.5,1963.2,0.001]
[1771499282950,7.35450071,1963.5,1963.3,0.001]
[1771499283485,1.74371201,1963.5,1963.3,0.001]
[1771499284276,1.74367443,1963.5,1963.3,0.001]
[1771499286685,1.27323721,1963.5,1963.3,0.001]
[1771499288286,0.0011,1963.6,1963.3,0.001]
[1771499288467,0.0011,1963.6,1963.3,0.46968972]
[1771499288867,0.0011,1963.6,1963.3,1.74301696]
[1771499289259,0.0011,1963.6,1963.3,0.46968972]
[1771499289591,0.0011,1963.6,1963.3,0.001]
[1771499295088,0.0011,1963.6,1963.4,0.001]
[1771499295460,0.0011,1963.5,1963.4,0.001]
[1771499312906,0.0011,1963.7,1963.4,0.46968972]
[1771499313105,0.48813677,1963.6,1963.4,0.001]
[1771499313409,0.48813677,1963.6,1963.3,0.001]
[1771499315411,1.76136896,1963.6,1963.3,0.001]
[1771499319009,0.48813677,1963.6,1963.4,0.001]
[1771499319198,7.74303726,1963.7,1963.4,0.001]
[1771499319508,0.0011,1963.5,1963.4,0.001]
[1771499325326,0.0011,1963.6,1963.4,0.49249884]
[1771499325622,0.0011,1963.8,1963.5,0.49149884]
[1771499326615,0.0011,1963.8,1963.5,1.76471328]
[1771499330012,0.0011,1963.8,1963.6,0.49149884]
[1771499331209,1.746175,1964.2,1963.6,1.76467056]
[1771499331404,0.0011,1964.0,1963.6,1.76467056]
[1771499333223,0.0011,1964.0,1963.7,0.49149884]
[1771499335819,0.47335379,1964.4,1963.8,0.49149884]
[1771499336028,0.47335379,1964.4,1963.7,1.2730983]
[1771499336320,0.47335379,1964.4,1963.6,1.76461711]
[1771499336624,0.47335379,1964.0,1963.5,1.27320883]
[1771499337112,0.865,1964.1,1963.5,1.76470767]
[1771499338221,0.865,1964.1,1963.6,0.49149884]
[1771499339526,7.35627915,1964.2,1963.6,0.49149884]
[1771499339716,8.22127915,1964.2,1963.6,0.49149884]
[1771499340531,8.22127915,1964.2,1963.6,1.76466987]
[1771499342032,7.35627915,1964.2,1963.6,1.76466987]
[1771499342224,8.22227915,1964.2,1963.7,0.467813]
[1771499343057,8.22227915,1964.2,1963.7,0.468813]
[1771499343237,0.0011,1964.1,1963.7,0.468813]
[1771499343408,0.8671,1964.1,1963.7,0.468813]
[1771499345340,2.13998528,1964.1,1963.7,0.001]
[1771499345571,2.60158381,1964.1,1963.7,0.001]
[1771499345838,6.07168697,1963.8,1963.5,0.001]
[1771499346507,1.32959853,1963.7,1963.4,0.001]
[1771499346917,0.868,1963.7,1963.4,0.001]
[1771499347935,1.72898937,1963.9,1963.4,0.001]
[1771499348233,0.868,1963.7,1963.4,0.001]
[1771499348942,1.27400058,1964.1,1963.5,0.47563174]
[1771499349234,0.869,1964.0,1963.5,0.47563174]
[1771499349457,2.14191624,1964.0,1963.6,0.47563174]
[1771499349961,0.869,1964.0,1963.6,0.47563174]
[1771499350535,2.14191745,1964.0,1963.6,0.47563174]
[1771499351066,0.869,1964.0,1963.6,0.47563174]
[1771499351456,0.0011,1964.1,1963.8,0.47563174]
[1771499353729,0.0011,1964.1,1964.0,0.47563174]
[1771499353935,0.869,1964.5,1964.0,0.47563174]
[1771499354561,1.27251238,1964.7,1964.0,0.47563174]
[1771499354761,0.869,1964.6,1964.0,0.47563174]
[1771499355750,0.869,1964.6,1964.1,1.74847935]
[1771499355930,1.32498331,1964.6,1964.0,0.47563174]
[1771499356130,0.0011,1964.0,1963.9,1.27291962]
[1771499356362,6.93507175,1964.6,1963.9,1.74855136]
[1771499356535,0.45598331,1964.5,1963.9,0.47563174]
[1771499356737,0.0011,1964.1,1963.7,1.74867953]
[1771499357460,0.0011,1964.1,1963.8,0.47563174]
[1771499358039,0.0011,1964.1,1963.9,1.74860897]
[1771499358942,0.0011,1964.3,1964.0,0.47563174]
[1771499359138,0.779,1964.7,1964.0,0.47563174]
[1771499360253,0.45598331,1964.8,1964.2,0.47563174]
[1771499360838,1.72837794,1964.8,1964.2,0.47563174]
[1771499361561,5.95737232,1964.9,1964.2,0.47563174]
[1771499361562,2.14036726,1964.9,1964.2,0.47563174]
[1771499361869,2.59635057,1964.9,1964.2,0.47563174]
[1771499362238,0.45598331,1964.8,1964.2,0.47563174]
[1771499362439,0.45598331,1964.8,1964.2,1.7484081]
[1771499362767,6.06607175,1964.8,1964.2,0.47563174]
[1771499363353,0.45598331,1964.7,1964.2,0.47563174]
[1771499365554,1.72848436,1964.7,1964.2,0.47563174]
[1771499366982,0.45598331,1964.7,1964.2,1.74841302]
[1771499367148,2.59634448,1964.9,1964.3,0.47563174]
[1771499367474,1.72834448,1964.9,1964.3,0.47563174]
[1771499367672,0.45598331,1965.1,1964.4,1.74828496]
[1771499367875,0.869,1965.0,1964.5,0.47563174]
[1771499368380,1.72823533,1965.1,1964.5,0.47563174]
[1771499368559,0.869,1965.0,1964.5,0.47563174]
[1771499368875,0.0011,1964.7,1964.5,0.47563174]
[1771499369776,0.0011,1964.7,1964.5,1.7481997]
[1771499370375,0.0011,1964.7,1964.5,0.47563174]
[1771499371064,0.0011,1964.7,1964.5,1.74821858]
[1771499371266,0.0011,1964.7,1964.5,0.47563174]
[1771499371744,0.0011,1964.7,1964.5,1.7481723]
[1771499371949,0.0011,1964.7,1964.4,1.74828496]
[1771499372149,0.0011,1964.7,1964.4,0.47563174]
[1771499374248,0.0011,1964.8,1964.5,0.47563174]
[1771499374646,0.869,1965.1,1964.6,0.47563174]
[1771499374881,0.869,1965.1,1964.3,1.27365322]
[1771499374882,0.45598331,1964.9,1964.3,1.74930703]
[1771499375955,2.59618869,1965.1,1964.4,0.47563174]
[1771499376460,1.72818869,1965.1,1964.5,1.77044672]
[1771499376657,2.59618869,1965.1,1964.5,1.77044672]
[1771499377555,0.47494421,1965.0,1964.5,1.27258844]
[1771499378158,7.35721878,1965.2,1964.5,1.77044672]
[1771499378384,0.869,1965.1,1964.6,0.49785828]
[1771499378564,2.14122034,1965.1,1964.6,1.77036968]
[1771499378764,2.61616455,1965.1,1964.5,5.09033899]
[1771499379064,2.61616455,1965.1,1964.5,1.27258844]
[1771499379260,2.61616455,1965.1,1964.5,1.77044672]
[1771499380857,1.34394421,1965.1,1964.5,1.77044672]
[1771499382280,6.88225884,1965.2,1964.6,0.49785828]
[1771499382281,7.75225884,1965.2,1964.6,0.49785828]
[1771499382652,6.88225884,1965.2,1964.6,0.49785828]
[1771499382857,0.87,1965.2,1964.8,0.49785828]
[1771499384479,0.0011,1965.0,1964.8,0.49785828]
[1771499384883,0.0011,1965.0,1964.8,1.77021932]
[1771499385184,0.0011,1965.0,1964.8,0.49785828]
[1771499385387,0.0011,1965.0,1964.8,1.77025192]
[1771499385590,0.0011,1965.0,1964.8,1.27239364]
[1771499387472,0.0011,1965.0,1964.7,1.7702635]
[1771499389794,0.0011,1965.0,1964.8,0.49785828]
[1771499391997,0.0011,1965.1,1964.8,1.77020179]
[1771499393107,0.0011,1965.1,1964.8,1.27234351]
[1771499394193,0.0011,1965.1,1964.8,1.77020179]
[1771499397213,0.47494421,1965.5,1964.9,0.49785828]
[1771499397782,7.74302006,1965.6,1964.9,0.49785828]
[1771499397995,2.6147965,1965.7,1964.9,0.49785828]
[1771499398581,2.6147965,1965.7,1964.9,0.49885828]
[1771499398779,0.0011,1965.0,1964.9,1.77118766]
[1771499399110,2.6147965,1965.7,1965.0,0.49785828]
[1771499399402,0.0011,1965.1,1965.0,0.49785828]
[1771499399605,1.7467965,1965.7,1965.0,0.49785828]
[1771499399790,0.47494421,1965.6,1965.0,0.49785828]
[1771499400414,6.07803662,1965.4,1964.9,1.27332523]
[1771499401714,7.35010464,1965.4,1964.9,0.001]
[1771499401881,0.45588592,1965.3,1964.9,0.001]
[1771499402487,5.08794788,1965.5,1964.9,0.47557676]
[1771499402488,0.45588592,1965.5,1964.9,0.47557676]
[1771499402792,2.1398776,1965.6,1964.9,0.47557676]
[1771499403387,1.2718776,1965.6,1964.9,0.47557676]
[1771499403711,1.72776352,1965.6,1964.9,0.47557676]
[1771499404915,0.45588592,1965.5,1964.9,1.27328467]
[1771499405393,0.45588592,1965.5,1964.9,1.74786143]
[1771499407795,0.37955005,1965.5,1964.9,1.74786143]